Workbook

Sheet dilluns dimecres mati
C1: GA:
A2: Curs 2025-2026
C3: SLIPI:
A7: Tipus | F7: Assignatura:
A8: Gran Grup | B8: GG | C8: =COUNTIF(E19:KZ42,"GG")*0.25 -> 0 | F8: Semestre:
A9: Seminari | B9: A | C9: =COUNTIF(E19:KZ42,"A")*0.25 -> 0 | F9: Grau: | L9: Grup: | R9: Curs:
A10: Seminari | B10: B | C10: =COUNTIF(E19:KZ42,"B")*0.25 -> 0 | F10: Model docent: | L10: ECTS:
A11: Seminari | B11: C | C11: =COUNTIF(E19:KZ42,"C")*0.25 -> 0 | F11: N. Alumnes: | L11: Professor/a respons. assig.:
A12: Avaluació | B12: AV | C12: =COUNTIF(E19:KZ42,"AV")*0.25 -> 0 | F12: Hores Gran Grup: | L12: Professors/res assignatures:
A13: Pràct. Labor. | B13: PLA | C13: =COUNTIF(E19:KZ42,"PLA")*0.25 -> 0 | F13: Hores per Seminari:
A14: Pràct. Labor. | B14: PLB | C14: =COUNTIF(E19:KZ42,"PLB")*0.25 -> 0 | F14: Hores per Pràctiques Laboratori:
A15: Pràct. Labor. | B15: PLC | C15: =COUNTIF(E19:KZ42,"PLC")*0.25 -> 0
A16: Tutories | B16: T | C16: =COUNTIF(E19:KZ42,"T")*0.25 -> 0
A18: Horari | E18: 2025-09-10 | I18: =E18+5 -> 2025-09-15 | L18: =I18+7 -> 45922 | M18: =I18+2 -> 2025-09-17 | P18: =M18+7 -> 45924 | Q18: =M18+5 -> 2025-09-22 | T18: =Q18+7 -> 45929 | U18: =Q18+2 -> 2025-09-24 | X18: =U18+7 -> 45931 | Y18: =U18+5 -> 2025-09-29 | AB18: =Y18+7 -> 45936 | AC18: =Y18+2 -> 2025-10-01 | AF18: =AC18+7 -> 45938 | AG18: =AC18+5 -> 2025-10-06 | AJ18: =AG18+7 -> 45943 | AK18: =AG18+2 -> 2025-10-08 | AN18: =AK18+7 -> 45945 | AO18: =AK18+5 -> 2025-10-13 | AR18: =AO18+7 -> 45950 | AS18: =AO18+2 -> 2025-10-15 | AV18: =AS18+7 -> 45952 | AW18: =AS18+5 -> 2025-10-20 | AZ18: =AW18+7 -> 45957 | BA18: =AW18+2 -> 2025-10-22 | BD18: =BA18+7 -> 45959 | BE18: =BA18+5 -> 2025-10-27 | BH18: =BE18+7 -> 45964 | BI18: =BE18+2 -> 2025-10-29 | BL18: =BI18+7 -> 45966 | BM18: =BI18+5 -> 2025-11-03 | BP18: =BM18+7 -> 45971 | BQ18: =BM18+2 -> 2025-11-05 | BT18: =BQ18+7 -> 45973 | BU18: =BQ18+5 -> 2025-11-10 | BX18: =BU18+7 -> 45978 | BY18: =BU18+2 -> 2025-11-12 | CB18: =BY18+7 -> 45980 | CC18: =BY18+5 -> 2025-11-17 | CF18: =CC18+7 -> 45985 | CG18: =CC18+2 -> 2025-11-19 | CJ18: =CG18+7 -> 45987 | CK18: =CG18+5 -> 2025-11-24 | CN18: =CK18+7 -> 45992 | CO18: =CK18+2 -> 2025-11-26 | CR18: =CO18+7 -> 45994 | CS18: =CO18+5 -> 2025-12-01 | CV18: =CS18+7 -> 45999 | CW18: =CS18+2 -> 2025-12-03 | CZ18: =CW18+7 -> 46001 | DA18: =CW18+5 -> 2025-12-08 | DD18: =DA18+7 -> 46006 | DE18: =DA18+2 -> 2025-12-10 | DH18: =DE18+7 -> 46008 | DI18: =DE18+5 -> 2025-12-15 | DL18: =DI18+7 -> 46013 | DM18: =DI18+2 -> 2025-12-17 | DP18: =DM18+7 -> 46015 | DQ18: 2026-01-07 | DT18: =DQ18+7 -> 46036 | DU18: =DQ18+5 -> 2026-01-12 | DX18: =DU18+7 -> 46041 | DY18: =DU18+2 -> 2026-01-14 | EB18: =DY18+7 -> 46043 | EC18: =DY18+5 -> 2026-01-19 | EF18: =EC18+7 -> 46048 | EG18: =EC18+2 -> 2026-01-21 | EJ18: =EG18+7 -> 46050 | EK18: =EG18+5 -> 2026-01-26 | EN18: =EK18+7 -> 46055 | EO18: =EK18+2 -> 2026-01-28 | ER18: =EO18+7 -> 46057 | ES18: =EO18+5 -> 2026-02-02 | EV18: =ES18+7 -> 46062 | EW18: =ES18+2 -> 2026-02-04 | EZ18: =EW18+7 -> 46064 | FA18: =EW18+5 -> 2026-02-09 | FD18: =FA18+7 -> 46069 | FE18: =FA18+2 -> 2026-02-11 | FH18: =FE18+7 -> 46071 | FI18: =FE18+5 -> 2026-02-16 | FL18: =FI18+7 -> 46076 | FM18: =FI18+2 -> 2026-02-18 | FP18: =FM18+7 -> 46078 | FQ18: =FM18+5 -> 2026-02-23 | FT18: =FQ18+7 -> 46083 | FU18: =FQ18+2 -> 2026-02-25 | FX18: =FU18+7 -> 46085 | FY18: =FU18+5 -> 2026-03-02 | GB18: =FY18+7 -> 46090 | GC18: =FY18+2 -> 2026-03-04 | GF18: =GC18+7 -> 46092 | GG18: =GC18+5 -> 2026-03-09 | GJ18: =GG18+7 -> 46097 | GK18: =GG18+2 -> 2026-03-11 | GN18: =GK18+7 -> 46099 | GO18: =GK18+5 -> 2026-03-16 | GR18: =GO18+7 -> 46104 | GS18: =GO18+2 -> 2026-03-18 | GV18: =GS18+7 -> 46106 | GW18: =GS18+5 -> 2026-03-23 | GZ18: =GW18+7 -> 46111 | HA18: =GW18+2 -> 2026-03-25 | HD18: =HA18+7 -> 46113 | HE18: 2026-04-08 | HH18: =HE18+7 -> 46127 | HI18: =HE18+5 -> 2026-04-13 | HL18: =HI18+7 -> 46132 | HM18: =HI18+2 -> 2026-04-15 | HP18: =HM18+7 -> 46134 | HQ18: =HM18+5 -> 2026-04-20 | HT18: =HQ18+7 -> 46139 | HU18: =HQ18+2 -> 2026-04-22 | HX18: =HU18+7 -> 46141 | HY18: =HU18+5 -> 2026-04-27 | IB18: =HY18+7 -> 46146 | IC18: =HY18+2 -> 2026-04-29 | IF18: =IC18+7 -> 46148 | IG18: =IC18+5 -> 2026-05-04 | IJ18: =IG18+7 -> 46153 | IK18: =IG18+2 -> 2026-05-06 | IN18: =IK18+7 -> 46155 | IO18: =IK18+5 -> 2026-05-11 | IR18: =IO18+7 -> 46160 | IS18: =IO18+2 -> 2026-05-13 | IV18: =IS18+7 -> 46162 | IW18: =IS18+5 -> 2026-05-18 | IZ18: =IW18+7 -> 46167 | JA18: =IW18+2 -> 2026-05-20 | JD18: =JA18+7 -> 46169 | JE18: =JA18+5 -> 2026-05-25 | JH18: =JE18+7 -> 46174 | JI18: =JE18+2 -> 2026-05-27 | JL18: =JI18+7 -> 46176 | JM18: =JI18+5 -> 2026-06-01 | JP18: =JM18+7 -> 46181 | JQ18: =JM18+2 -> 2026-06-03 | JT18: =JQ18+7 -> 46183 | JU18: =JQ18+5 -> 2026-06-08 | JX18: =JU18+7 -> 46188 | JY18: =JU18+2 -> 2026-06-10 | KB18: =JY18+7 -> 46190 | KC18: =JY18+5 -> 2026-06-15 | KF18: =KC18+7 -> 46195 | KG18: =KC18+2 -> 2026-06-17 | KJ18: =KG18+7 -> 46197 | KK18: =KG18+5 -> 2026-06-22 | KN18: =KK18+7 -> 46202 | KO18: =KK18+2 -> 2026-06-24 | KR18: =KO18+7 -> 46204 | KS18: =KO18+5 -> 2026-06-29 | KV18: =KS18+7 -> 46209 | KW18: =KS18+2 -> 2026-07-01 | KZ18: =KW18+7 -> 46211
A19: 08:00:00 | C19: 08:15:00
A20: 08:15:00 | C20: 08:30:00
A21: 08:30:00 | C21: 08:45:00
A22: 08:45:00 | C22: 09:00:00
A23: 09:00:00 | C23: 09:15:00
A24: 09:15:00 | C24: 09:30:00
A25: 09:30:00 | C25: 09:45:00
A26: 09:45:00 | C26: 10:00:00
A27: 10:00:00 | C27: 10:15:00
A28: 10:15:00 | C28: 10:30:00
A29: 10:30:00 | C29: 10:45:00
A30: 10:45:00 | C30: 11:00:00
A31: 11:00:00 | C31: 11:15:00
A32: 11:15:00 | C32: 11:30:00
A33: 11:30:00 | C33: 11:45:00
A34: 11:45:00 | C34: 12:00:00
A35: 12:00:00 | C35: 12:15:00
A36: 12:15:00 | C36: 12:30:00
A37: 12:30:00 | C37: 12:45:00
A38: 12:45:00 | C38: 13:00:00
A39: 13:00:00 | C39: 13:15:00
A40: 13:15:00 | C40: 13:30:00
A41: 13:30:00 | C41: 13:45:00
A42: 13:45:00 | C42: 14:00:00
A43: Espai Assignat
A45: Comentaris: | BQ45: Activitat Campus | DA45: Festiu - Immaculada Concepció | IS45: Activitats Campus | JE45: Festiu - Pàsqua Granada | KO45: Festiu - Sant Joan
A96: Model | B96: Aula | D96: ECTS | E96: Assignatures | J96: Grups | K96: Graus | L96: Sem | M96: Curs
A97: 1A | B97: 11 (GA/100) | D97: 4 | K97: GEI | L97: 1er | M97: 1
A98: 1B | B98: 12 (GA/101) | D98: 3 | E98: 102054 Activitat física, diversitat i salut | J98: 1 | K98: GEP | L98: 2on | M98: 2
A99: 2 | B99: 13 (GA/102) | D99: 4 | E99: 102053 Aprenentatge i desenvolupament motor | J99: 1/20 | K99: GEP-GEI | L99: Anual | M99: 3
A100: 3 | B100: 14 (GA/103) | D100: 5 | E100: 102050 Educació física i la seva didàctica II | J100: 1/70 | K100: GPE-GES | M100: 4
A101: 4 | B101: 15 (GA/104) | D101: 6 | E101: 102036 Educació musical i visual | J101: 2 | K101: GES
A102: 5 | B102: 16 (GA/111) | D102: 7 | E102: 102048 Joc i iniciació esportiva | J102: 3 | K102: GPE
A103: 6 | B103: 17 (GA/112) | D103: 8 | E103: 102032 Llenguatge musical | J103: 4
B104: 18 (GA/117) | D104: 9 | E104: 103579 Recursos per a l'Ensenyament-Aprenentatge de la Llengua Anglesa en Educació Infantil i Primària | J104: 4/40
B105: 19 (GA/119) | D105: 10 | E105: 103582 Usos Professionals i Acadèmics de la Llengua Anglesa | J105: 20
B106: 21 (GA/200) | D106: 12 | J106: 21
B107: 22 (GA/201) | D107: 15 | J107: 31
B108: 24 (GA/203) | J108: 41
B109: 25 (GA/204) | J109: 61
B110: 26 (GA/211) | J110: 62
B111: 27 (GA/212) | J111: 70
B112: 28 (GA/218) | J112: 71
B113: 29 (GA/219) | J113: 90
B114: 31 (GA/300) | J114: 90/1
B115: 33 (GA/302)
B116: 35 (GA/304)
B117: 36 (GA/311)
B118: 37 (GA/312)
B119: 39 ( GA/319)
B120: 41 (GA/400)
B121: 43 ( GA/402)
B122: 44 (GA/403)
B123: 45 (GA/404)
B124: 46 (GA/411)
B125: 47 (GA/412)
B126: 48 (GA/418)
B127: 49 (GA/419)
B128: 61 (G6/005)
B129: 62 (G6/006)
B130: 63 ( G6/007)
B131: E.T (G6/009)
B132: 65 (G6/107)
B133: 69 (G6/208)
B134: 51 (G5/-104)
B135: 52 (G5/-106)
B136: 71 (GL/505)
B137: 72 (GL/502)
B138: 73 (GL/305)
B139: 74 (GL/402)
B140: 81 (GS/012)
B141: 82 (GS/013)
B142: 83 (GB/002)
B143: L1 (GL/102)
B144: L2 (GL/105)
B145: L3 (GA/318)
B146: Inf2 (G6/106)
B147: Inf3 (G6/105)
B148: Inf4 (G6/103)
B149: Inf5 (G6/208)
B150: Inf6 (G6/202)
B151: S1 (GB/012)
B152: S2 (GB/003)
B153: S.foniatria (GB/005)
B154: S. Polivalent (GD/000)
B155: Taller 1 (GL/308)
B156: Taller 2 (GL/306)

Sheet dilluns dimecres tarda
C1: GA:
A2: Curs 2025-2026
C3: SLIPI:
A7: Tipus | F7: Assignatura:
A8: Gran Grup | B8: GG | C8: =COUNTIF(E19:KZ42,"GG")*0.25 -> 0 | F8: Semestre:
A9: Seminari | B9: A | C9: =COUNTIF(E19:KZ42,"A")*0.25 -> 0 | F9: Grau: | L9: Grup: | R9: Curs:
A10: Seminari | B10: B | C10: =COUNTIF(E19:KZ42,"B")*0.25 -> 0 | F10: Model docent: | L10: ECTS:
A11: Seminari | B11: C | C11: =COUNTIF(E19:KZ42,"C")*0.25 -> 0 | F11: N. Alumnes: | L11: Professor/a respons. assig.:
A12: Avaluació | B12: AV | C12: =COUNTIF(E19:KZ42,"AV")*0.25 -> 0 | F12: Hores Gran Grup: | L12: Professors/res assignatures:
A13: Pràct. Labor. | B13: PLA | C13: =COUNTIF(E19:KZ42,"PLA")*0.25 -> 0 | F13: Hores per Seminari:
A14: Pràct. Labor. | B14: PLB | C14: =COUNTIF(E19:KZ42,"PLB")*0.25 -> 0 | F14: Hores per Pràctiques Laboratori:
A15: Pràct. Labor. | B15: PLC | C15: =COUNTIF(E19:KZ42,"PLC")*0.25 -> 0
A16: Tutories | B16: T | C16: =COUNTIF(E19:KZ42,"T")*0.25 -> 0
A18: Horari | E18: 2025-09-10 | I18: =E18+5 -> 2025-09-15 | L18: =I18+7 -> 45922 | M18: =I18+2 -> 2025-09-17 | P18: =M18+7 -> 45924 | Q18: =M18+5 -> 2025-09-22 | T18: =Q18+7 -> 45929 | U18: =Q18+2 -> 2025-09-24 | X18: =U18+7 -> 45931 | Y18: =U18+5 -> 2025-09-29 | AB18: =Y18+7 -> 45936 | AC18: =Y18+2 -> 2025-10-01 | AF18: =AC18+7 -> 45938 | AG18: =AC18+5 -> 2025-10-06 | AJ18: =AG18+7 -> 45943 | AK18: =AG18+2 -> 2025-10-08 | AN18: =AK18+7 -> 45945 | AO18: =AK18+5 -> 2025-10-13 | AR18: =AO18+7 -> 45950 | AS18: =AO18+2 -> 2025-10-15 | AV18: =AS18+7 -> 45952 | AW18: =AS18+5 -> 2025-10-20 | AZ18: =AW18+7 -> 45957 | BA18: =AW18+2 -> 2025-10-22 | BD18: =BA18+7 -> 45959 | BE18: =BA18+5 -> 2025-10-27 | BH18: =BE18+7 -> 45964 | BI18: =BE18+2 -> 2025-10-29 | BL18: =BI18+7 -> 45966 | BM18: =BI18+5 -> 2025-11-03 | BP18: =BM18+7 -> 45971 | BQ18: =BM18+2 -> 2025-11-05 | BT18: =BQ18+7 -> 45973 | BU18: =BQ18+5 -> 2025-11-10 | BX18: =BU18+7 -> 45978 | BY18: =BU18+2 -> 2025-11-12 | CB18: =BY18+7 -> 45980 | CC18: =BY18+5 -> 2025-11-17 | CF18: =CC18+7 -> 45985 | CG18: =CC18+2 -> 2025-11-19 | CJ18: =CG18+7 -> 45987 | CK18: =CG18+5 -> 2025-11-24 | CN18: =CK18+7 -> 45992 | CO18: =CK18+2 -> 2025-11-26 | CR18: =CO18+7 -> 45994 | CS18: =CO18+5 -> 2025-12-01 | CV18: =CS18+7 -> 45999 | CW18: =CS18+2 -> 2025-12-03 | CZ18: =CW18+7 -> 46001 | DA18: =CW18+5 -> 2025-12-08 | DD18: =DA18+7 -> 2025-12-15 | DE18: =DA18+2 -> 2025-12-10 | DH18: =DE18+7 -> 46008 | DI18: =DE18+5 -> 2025-12-15 | DL18: =DI18+7 -> 2025-12-22 | DM18: =DI18+2 -> 2025-12-17 | DP18: =DM18+7 -> 46015 | DQ18: 2026-01-07 | DT18: =DQ18+7 -> 2026-01-14 | DU18: =DQ18+5 -> 2026-01-12 | DX18: =DU18+7 -> 46041 | DY18: =DU18+2 -> 2026-01-14 | EB18: =DY18+7 -> 46043 | EC18: =DY18+5 -> 2026-01-19 | EF18: =EC18+7 -> 46048 | EG18: =EC18+2 -> 2026-01-21 | EJ18: =EG18+7 -> 46050 | EK18: =EG18+5 -> 2026-01-26 | EN18: =EK18+7 -> 46055 | EO18: =EK18+2 -> 2026-01-28 | ER18: =EO18+7 -> 46057 | ES18: =EO18+5 -> 2026-02-02 | EV18: =ES18+7 -> 46062 | EW18: =ES18+2 -> 2026-02-04 | EZ18: =EW18+7 -> 46064 | FA18: =EW18+5 -> 2026-02-09 | FD18: =FA18+7 -> 46069 | FE18: =FA18+2 -> 2026-02-11 | FH18: =FE18+7 -> 46071 | FI18: =FE18+5 -> 2026-02-16 | FL18: =FI18+7 -> 46076 | FM18: =FI18+2 -> 2026-02-18 | FP18: =FM18+7 -> 46078 | FQ18: =FM18+5 -> 2026-02-23 | FT18: =FQ18+7 -> 46083 | FU18: =FQ18+2 -> 2026-02-25 | FX18: =FU18+7 -> 46085 | FY18: =FU18+5 -> 2026-03-02 | GB18: =FY18+7 -> 46090 | GC18: =FY18+2 -> 2026-03-04 | GF18: =GC18+7 -> 46092 | GG18: =GC18+5 -> 2026-03-09 | GJ18: =GG18+7 -> 46097 | GK18: =GG18+2 -> 2026-03-11 | GN18: =GK18+7 -> 46099 | GO18: =GK18+5 -> 2026-03-16 | GR18: =GO18+7 -> 46104 | GS18: =GO18+2 -> 2026-03-18 | GV18: =GS18+7 -> 46106 | GW18: =GS18+5 -> 2026-03-23 | GZ18: =GW18+7 -> 46111 | HA18: =GW18+2 -> 2026-03-25 | HD18: =HA18+7 -> 46113 | HE18: 2026-04-08 | HH18: =HE18+7 -> 46127 | HI18: =HE18+5 -> 2026-04-13 | HL18: =HI18+7 -> 46132 | HM18: =HI18+2 -> 2026-04-15 | HP18: =HM18+7 -> 46134 | HQ18: =HM18+5 -> 2026-04-20 | HT18: =HQ18+7 -> 46139 | HU18: =HQ18+2 -> 2026-04-22 | HX18: =HU18+7 -> 46141 | HY18: =HU18+5 -> 2026-04-27 | IB18: =HY18+7 -> 46146 | IC18: =HY18+2 -> 2026-04-29 | IF18: =IC18+7 -> 46148 | IG18: =IC18+5 -> 2026-05-04 | IJ18: =IG18+7 -> 46153 | IK18: =IG18+2 -> 2026-05-06 | IN18: =IK18+7 -> 46155 | IO18: =IK18+5 -> 2026-05-11 | IR18: =IO18+7 -> 46160 | IS18: =IO18+2 -> 2026-05-13 | IV18: =IS18+7 -> 46162 | IW18: =IS18+5 -> 2026-05-18 | IZ18: =IW18+7 -> 46167 | JA18: =IW18+2 -> 2026-05-20 | JD18: =JA18+7 -> 46169 | JE18: =JA18+5 -> 2026-05-25 | JH18: =JE18+7 -> 46174 | JI18: =JE18+2 -> 2026-05-27 | JL18: =JI18+7 -> 46176 | JM18: =JI18+5 -> 2026-06-01 | JP18: =JM18+7 -> 46181 | JQ18: =JM18+2 -> 2026-06-03 | JT18: =JQ18+7 -> 46183 | JU18: =JQ18+5 -> 2026-06-08 | JX18: =JU18+7 -> 46188 | JY18: =JU18+2 -> 2026-06-10 | KB18: =JY18+7 -> 46190 | KC18: =JY18+5 -> 2026-06-15 | KF18: =KC18+7 -> 46195 | KG18: =KC18+2 -> 2026-06-17 | KJ18: =KG18+7 -> 46197 | KK18: =KG18+5 -> 2026-06-22 | KN18: =KK18+7 -> 46202 | KO18: =KK18+2 -> 2026-06-24 | KR18: =KO18+7 -> 46204 | KS18: =KO18+5 -> 2026-06-29 | KV18: =KS18+7 -> 46209 | KW18: =KS18+2 -> 2026-07-01 | KZ18: =KW18+7 -> 46211
A19: 15:00:00 | C19: 15:15:00
A20: 15:15:00 | C20: 15:30:00
A21: 15:30:00 | C21: 15:45:00
A22: 15:45:00 | C22: 16:00:00
A23: 16:00:00 | C23: 16:15:00
A24: 16:15:00 | C24: 16:30:00
A25: 16:30:00 | C25: 16:45:00
A26: 16:45:00 | C26: 17:00:00
A27: 17:00:00 | C27: 17:15:00
A28: 17:15:00 | C28: 17:30:00
A29: 17:30:00 | C29: 17:45:00
A30: 17:45:00 | C30: 18:00:00
A31: 18:00:00 | C31: 18:15:00
A32: 18:15:00 | C32: 18:30:00
A33: 18:30:00 | C33: 18:45:00
A34: 18:45:00 | C34: 19:00:00
A35: 19:00:00 | C35: 19:15:00
A36: 19:15:00 | C36: 19:30:00
A37: 19:30:00 | C37: 19:45:00
A38: 19:45:00 | C38: 20:00:00
A39: 20:00:00 | C39: 20:15:00
A40: 20:15:00 | C40: 20:30:00
A41: 20:30:00 | C41: 20:45:00
A42: 20:45:00 | C42: 21:00:00
A43: Espai Assignat
A45: Comentaris: | DA45: Festiu - Immaculada Concepció | JE45: Festiu - Pàsqua Granada | KO45: Festiu - Sant Joan
A96: Model | B96: Aula | D96: ECTS | E96: Assignatures | J96: Grups | K96: Graus | L96: Sem | M96: Curs
A97: 1A | B97: 11 (GA/100) | D97: 4 | K97: GEI | L97: 1er | M97: 1
A98: 1B | B98: 12 (GA/101) | D98: 3 | E98: 102054 Activitat física, diversitat i salut | J98: 1 | K98: GEP | L98: 2on | M98: 2
A99: 2 | B99: 13 (GA/102) | D99: 4 | E99: 102053 Aprenentatge i desenvolupament motor | J99: 1/20 | K99: GEP-GEI | L99: Anual | M99: 3
A100: 3 | B100: 14 (GA/103) | D100: 5 | E100: 102050 Educació física i la seva didàctica II | J100: 1/70 | K100: GPE-GES | M100: 4
A101: 4 | B101: 15 (GA/104) | D101: 6 | E101: 102036 Educació musical i visual | J101: 2 | K101: GES
A102: 5 | B102: 16 (GA/111) | D102: 7 | E102: 102048 Joc i iniciació esportiva | J102: 3 | K102: GPE
A103: 6 | B103: 17 (GA/112) | D103: 8 | E103: 102032 Llenguatge musical | J103: 4
B104: 18 (GA/117) | D104: 9 | E104: 103579 Recursos per a l'Ensenyament-Aprenentatge de la Llengua Anglesa en Educació Infantil i Primària | J104: 4/40
B105: 19 (GA/119) | D105: 10 | E105: 103582 Usos Professionals i Acadèmics de la Llengua Anglesa | J105: 20
B106: 21 (GA/200) | D106: 12 | J106: 21
B107: 22 (GA/201) | D107: 15 | J107: 31
B108: 24 (GA/203) | J108: 41
B109: 25 (GA/204) | J109: 61
B110: 26 (GA/211) | J110: 62
B111: 27 (GA/212) | J111: 70
B112: 28 (GA/218) | J112: 71
B113: 29 (GA/219) | J113: 90
B114: 31 (GA/300) | J114: 90/1
B115: 33 (GA/302)
B116: 35 (GA/304)
B117: 36 (GA/311)
B118: 37 (GA/312)
B119: 39 ( GA/319)
B120: 41 (GA/400)
B121: 43 ( GA/402)
B122: 44 (GA/403)
B123: 45 (GA/404)
B124: 46 (GA/411)
B125: 47 (GA/412)
B126: 48 (GA/418)
B127: 49 (GA/419)
B128: 61 (G6/005)
B129: 62 (G6/006)
B130: 63 ( G6/007)
B131: E.T (G6/009)
B132: 65 (G6/107)
B133: 69 (G6/208)
B134: 51 (G5/-104)
B135: 52 (G5/-106)
B136: 71 (GL/505)
B137: 72 (GL/502)
B138: 73 (GL/305)
B139: 74 (GL/402)
B140: 81 (GS/012)
B141: 82 (GS/013)
B142: 83 (GB/002)
B143: L1 (GL/102)
B144: L2 (GL/105)
B145: L3 (GA/318)
B146: Inf2 (G6/106)
B147: Inf3 (G6/105)
B148: Inf4 (G6/103)
B149: Inf5 (G6/208)
B150: Inf6 (G6/202)
B151: S1 (GB/012)
B152: S2 (GB/003)
B153: S.foniatria (GB/005)
B154: S. Polivalent (GD/000)
B155: Taller 1 (GL/308)
B156: Taller 2 (GL/306)
